[Event "VIII Lorca Open-A 2019"]
[Site "Lorca"]
[Date "2019.12.30"]
[Round "8.9"]
[White "Raja Harshit"]
[Black "Low, Zhen Yu Cyrus"]
[Result "0-1"]
[ECO "B11"]
[WhiteElo "2447"]
[BlackElo "2420"]
[Annotator "NA"]
[PlyCount "142"]
[EventDate "2019.12.26"]
[EventType "swiss"]
[EventCountry "ESP"]
[SourceTitle "playchess.com"]
[Source "ChessBase"]
[SourceQuality "1"]
[TimeControl "5400+30"]

1. e4 {[%emt 0:06:23]} c6 {[%emt 0:00:00]} 2. Nc3 {[%emt 0:01:11]} d5 {[%emt 0:00:00]} 3. Nf3 {[%emt 0:00:03]} dxe4 {[%emt 0:00:00]} 4. Nxe4 {[%emt 0:00:07]} Nf6 {[%emt 0:00:00]} 5. Qe2 {[%emt 0:00:41]} Na6 {[%emt 0:00:02]} (5... Qd5 6. Nc3 Qh5 7. Qe5 Qxe5+ 8. Nxe5 Bf5 9. Bc4 e6 10. d3 Nbd7 11. Nxd7 Nxd7 12. O-O Be7 13. a4 {0-1 (51) Harikrishna,P (2729)-Karjakin,S (2753) Kolkata 2018}) 6. Nxf6+ {[%emt 0:06:44] B11: Caro-Kann: Two Knights Variation} gxf6 {[%emt 0:00:08]} 7. d4 {[%emt 0:01:07]} Qd5 {[%emt 0:04:23]} 8. c3 {[%emt 0:06:12]} Bg4 {[%emt 0:00:53]} 9. h3 {[%emt 0:05:27]} Bxf3 {[%emt 0:00:47]} 10. gxf3 $146 {[%emt 0:03:52]} ({Predecessor:} 10. Qxf3 Qxf3 11. gxf3 Nc7 12. Bf4 Nd5 13. Be3 {0-1 (34) Holtman,T (2234)-Jablonicky,M (2330) Lvov 2018}) 10... e6 {[%emt 0:03:31]} 11. Qe4 {[%emt 0:04:21]} Nc7 {[%emt 0:08:30]} 12. Qf4 {[%emt 0:04:03]} Qd8 {[%emt 0:00:08]} 13. Rg1 {[%emt 0:05:59]} Nd5 {[%emt 0:11:19]} 14. Qe4 {[%emt 0:00:22]} Qd7 {[%emt 0:03:22]} 15. Bd2 {[%emt 0:05:44]} O-O-O {[%emt 0:01:54]} 16. O-O-O {[%emt 0:12:37]} f5 {[%emt 0:05:57]} 17. Qh4 {[%emt 0:00:29]} Be7 {[%emt 0:00:41]} 18. Qh5 {[%emt 0:00:26]} Nf6 {[%emt 0:01:16]} 19. Qh6 {[%emt 0:00:04]} Rhg8 {[%emt 0:01:49]} 20. Bc4 {[%emt 0:04:13]} Rg6 {[%emt 0:01:42]} 21. Qe3 {[%emt 0:01:10]} Nd5 {[%emt 0:01:40]} 22. Qe2 $15 {[%emt 0:01:55]} Qd6 {[%emt 0:06:15]} 23. Bb3 {[%emt 0:04:42]} Bh4 {[%emt 0:08:00]} 24. Rxg6 {[%emt 0:00:30]} hxg6 {[%emt 0:00:30]} 25. c4 {[%emt 0:00:30]} Nf4 {[%emt 0:09:24]} 26. Qe3 {[%emt 0:07:20]} Nxh3 {[%emt 0:03:41]} 27. d5 {[%emt 0:02:48]} Bxf2 {[%emt 0:00:30]} 28. Qh6 {[%emt 0:00:30]} Ng1 {[%emt 0:00:30]} 29. Bg5 {[%emt 0:00:30]} Re8 {[%emt 0:00:30]} 30. Qh7 {[%emt 0:00:30]} Nxf3 {[%emt 0:00:30]} 31. Qxf7 {[%emt 0:00:30]} Qf8 {[%emt 0:00:30]} 32. Qxg6 {[%emt 0:00:30]} Nxg5 {[%emt 0:00:30]} 33. Qxg5 {[%emt 0:00:30]} exd5 {[%emt 0:23:11]} 34. Kb1 {[%emt 0:13:35]} Be3 {[%emt 0:01:33]} 35. Qg6 {[%emt 0:00:40]} d4 {[%emt 0:00:22]} 36. c5 {[%emt 0:00:17]} Kb8 {[%emt 0:00:22]} 37. Bf7 {[%emt 0:00:30]} Re5 {[%emt 0:01:53]} 38. Rh1 {[%emt 0:00:53]} Rxc5 {[%emt 0:01:33]} 39. Qf6 {[%emt 0:01:00]} a5 {[%emt 0:00:30]} 40. b4 {[%emt 0:00:30]} Rc1+ {[%emt 0:00:07]} 41. Rxc1 {[%emt 0:00:03]} Qxb4+ {[%emt 0:00:08]} 42. Bb3 {[%emt 0:00:07]} Bxc1 {[%emt 0:00:32]} 43. Kxc1 {[%emt 0:00:00]} a4 {[%emt 0:01:36]} 44. Bc2 {[%emt 0:00:01]} Qa3+ {[%emt 0:00:22]} 45. Kb1 {[%emt 0:00:14]} Qb4+ {[%emt 0:01:29]} 46. Kc1 {[%emt 0:00:01]} Qe1+ {[%emt 0:00:00]} 47. Kb2 {[%emt 0:00:49]} Qc3+ {[%emt 0:01:00]} 48. Kc1 {[%emt 0:00:07]} Qe3+ {[%emt 0:00:00]} 49. Kb1 {[%emt 0:00:21]} Qc3 {[%emt 0:01:00]} 50. Kc1 {[%emt 0:00:00]} a3 {[%emt 0:00:00]} 51. Qxf5 {[%emt 0:00:00]} Qe1+ {[%emt 0:00:27]} 52. Bd1 {[%emt 0:00:00]} Qe3+ {[%emt 0:00:05]} 53. Kb1 {[%emt 0:00:08]} Qc3 {[%emt 0:00:19]} 54. Qc2 {[%emt 0:00:27]} Qe1 {[%emt 0:00:03]} 55. Kc1 {[%emt 0:00:12]} Kc7 {[%emt 0:00:19]} 56. Qd3 {[%emt 0:00:56]} Qb4 {[%emt 0:00:14]} 57. Qg3+ {[%emt 0:00:53]} Kb6 {[%emt 0:00:10]} 58. Bb3 {[%emt 0:03:33]} Qc5+ {[%emt 0:00:25]} 59. Kd1 {[%emt 0:00:18]} Qf5 {[%emt 0:01:26]} 60. Qd6 {[%emt 0:01:04]} Qd3+ {[%emt 0:00:33]} 61. Kc1 {[%emt 0:00:29]} Qc3+ {[%emt 0:00:18]} 62. Kd1 {[%emt 0:00:04]} Qd3+ {[%emt 0:00:52]} 63. Kc1 {[%emt 0:00:05]} Qf1+ {[%emt 0:00:10]} 64. Kd2 {[%emt 0:00:11]} Qf2+ {[%emt 0:00:09]} 65. Kd1 {[%emt 0:00:11]} Qf3+ {[%emt 0:01:02]} 66. Kc1 {[%emt 0:00:32]} Qe3+ {[%emt 0:00:13]} 67. Kd1 {[%emt 0:00:08]} d3 {[%emt 0:01:36]} 68. Qd8+ {[%emt 0:00:23]} Kb5 {[%emt 0:01:09]} 69. Ba4+ {[%emt 0:02:15]} Kb4 {[%emt 0:00:00]} 70. Qf8+ {[%emt 0:01:29]} c5 {[%emt 0:00:16]} 71. Qe8 {[%emt 0:00:07]} Qe2+ {[%emt 0:00:11]} 0-1

[Event "VIII Lorca Open-A 2019"]
[Site "Lorca"]
[Date "2019.12.30"]
[Round "8.10"]
[White "Plaskett, H James"]
[Black "Plazuelo Pascual, Juan"]
[Result "1/2-1/2"]
[ECO "A50"]
[WhiteElo "2419"]
[BlackElo "2433"]
[Annotator "ChessBase"]
[PlyCount "45"]
[EventDate "2019.12.26"]
[EventType "swiss"]
[EventCountry "ESP"]
[SourceTitle "playchess.com"]
[Source "ChessBase"]
[SourceQuality "1"]
[TimeControl "5400+30"]

1. c4 {[%emt 0:05:49]} b6 {[%emt 0:00:06]} 2. d4 {[%emt 0:02:00]} Nf6 {[%emt 0:02:12]} 3. f3 {[%emt 0:04:33]} Nc6 {[%emt 0:00:35]} 4. Nc3 {[%emt 0:04:18]} e5 {[%emt 0:00:26]} 5. d5 {[%emt 0:08:15]} Ne7 {[%emt 0:00:33]} 6. e4 {[%emt 0:00:05]} Ng6 {[%emt 0:00:47]} 7. Nge2 {[%emt 0:08:13]} Bc5 {[%emt 0:04:57]} 8. a3 {[%emt 0:05:39]} a5 {[%emt 0:05:09]} 9. g3 {[%emt 0:02:22]} O-O {[%emt 0:03:39]} 10. Na4 {[%emt 0:08:19]} Ne8 {[%emt 0:05:46]} 11. Nxc5 {[%emt 0:02:44]} bxc5 {[%emt 0:00:07]} 12. Nc3 {[%emt 0:02:33]} d6 {[%emt 0:03:06]} 13. Bd3 {[%emt 0:02:58]} f5 {[%emt 0:05:26]} 14. exf5 {[%emt 0:02:31]} Bxf5 {[%emt 0:01:36]} 15. Ne4 {[%emt 0:04:53]} h6 {[%emt 0:04:15]} 16. O-O {[%emt 0:00:13]} Qd7 {[%emt 0:06:00]} 17. Qc2 {[%emt 0:02:37]} Ne7 {[%emt 0:05:54]} 18. Rf2 {[%emt 0:08:56]} Bh3 {[%emt 0:48:26]} 19. g4 h5 {[%emt 0:00:30]} 20. Ng5 hxg4 21. Bh7+ Kh8 22. Bg8 {[%emt 0:24:02]} e4 {[%emt 0:01:30]} 23. Be6 {[%emt 0:00:30]} 1/2-1/2

[Event "VIII Lorca Open-A 2019"]
[Site "Lorca"]
[Date "2019.12.30"]
[Round "8.11"]
[White "Rodriguez Melendez, Juan Humbert"]
[Black "Holm, Kristian Stuvik"]
[Result "0-1"]
[ECO "B48"]
[WhiteElo "2242"]
[BlackElo "2489"]
[Annotator "ChessBase"]
[PlyCount "86"]
[EventDate "2019.12.26"]
[EventType "swiss"]
[EventCountry "ESP"]
[SourceTitle "playchess.com"]
[Source "ChessBase"]
[SourceQuality "1"]
[TimeControl "5400+30"]

1. e4 {[%emt 1:30:30]} c5 {[%emt 1:30:30]} 2. Nf3 {[%emt 0:00:30]} Nc6 {[%emt 0:00:30]} 3. d4 {[%emt 0:00:30]} cxd4 {[%emt 0:00:30]} 4. Nxd4 {[%emt 0:00:30]} e6 {[%emt 0:00:30]} 5. Nc3 {[%emt 0:00:30]} Qc7 {[%emt 0:00:30]} 6. Be3 {[%emt 0:00:30]} a6 {[%emt 0:00:30]} 7. a3 {[%emt 0:00:30]} Nf6 {[%emt 0:00:30]} 8. Be2 {[%emt 0:00:30]} Be7 {[%emt 0:00:30]} 9. O-O {[%emt 0:00:30]} O-O {[%emt 0:00:30]} 10. f4 {[%emt 0:00:30]} d6 {[%emt 0:00:30]} 11. Kh1 {[%emt 0:00:30]} Bd7 {[%emt 0:00:30]} 12. Qe1 {[%emt 0:00:30]} Nxd4 {[%emt 0:00:30]} 13. Bxd4 {[%emt 0:00:30]} Bc6 {[%emt 0:00:30]} 14. Bd3 {[%emt 0:00:30]} g6 {[%emt 0:00:30]} 15. e5 {[%emt 0:00:30]} Nd7 {[%emt 0:00:30]} 16. Ne4 {[%emt 0:00:30]} dxe5 {[%emt 0:00:30]} 17. fxe5 {[%emt 0:00:30]} Nxe5 {[%emt 0:00:30]} 18. Nf6+ {[%emt 0:00:30]} Bxf6 {[%emt 0:00:30]} 19. Rxf6 {[%emt 0:00:30]} Nxd3 {[%emt 0:00:30]} 20. cxd3 {[%emt 0:00:30]} Qd6 {[%emt 0:00:30]} 21. Qf2 {[%emt 0:00:30]} Rfd8 {[%emt 0:00:30]} 22. Bc3 {[%emt 0:00:30]} Rd7 {[%emt 0:00:30]} 23. Rf1 {[%emt 0:00:30]} Qd5 {[%emt 0:00:30]} 24. Qg3 {[%emt 0:00:30]} Rf8 {[%emt 0:00:30]} 25. R1f2 {[%emt 0:00:30]} e5 {[%emt 0:00:30]} 26. Bxe5 {[%emt 0:00:30]} Qxd3 {[%emt 0:00:30]} 27. h3 {[%emt 0:00:30]} Qxg3 {[%emt 0:00:30]} 28. Bxg3 {[%emt 0:00:30]} Re8 {[%emt 0:00:30]} 29. Kh2 {[%emt 0:00:30]} Re4 {[%emt 0:00:30]} 30. Bd6 {[%emt 0:00:30]} Re6 {[%emt 0:00:30]} 31. Bb4 {[%emt 0:00:30]} Rxf6 {[%emt 0:00:30]} 32. Rxf6 {[%emt 0:00:30]} Rd3 {[%emt 0:00:30]} 33. Rd6 {[%emt 0:00:30]} Re3 {[%emt 0:00:30]} 34. Bc3 {[%emt 0:00:30]} f5 {[%emt 0:00:30]} 35. Kg1 {[%emt 0:00:30]} f4 {[%emt 0:00:30]} 36. Rf6 {[%emt 0:00:30]} g5 {[%emt 0:00:30]} 37. h4 {[%emt 0:00:30]} Rg3 {[%emt 0:00:30]} 38. hxg5 {[%emt 0:00:30]} f3 {[%emt 0:00:30]} 39. Rf5 {[%emt 0:00:30]} Rxg2+ {[%emt 0:00:30]} 40. Kf1 {[%emt 0:00:30]} Bb5+ {[%emt 0:00:30]} 41. Ke1 {[%emt 0:00:30]} Re2+ {[%emt 0:00:30]} 42. Kd1 {[%emt 0:00:30]} Ba4+ {[%emt 0:00:30]} 43. Kc1 {[%emt 0:00:30]} f2 {[%emt 0:00:30]} 0-1

[Event "VIII Lorca Open-A 2019"]
[Site "Lorca"]
[Date "2019.12.30"]
[Round "8.12"]
[White "Gascon Del Nogal, Jose Rafael"]
[Black "Garcia Romero, Benjamin Abel"]
[Result "1-0"]
[ECO "A00"]
[WhiteElo "2475"]
[BlackElo "2231"]
[Annotator "ChessBase"]
[PlyCount "47"]
[EventDate "2019.12.26"]
[EventType "swiss"]
[EventCountry "ESP"]
[SourceTitle "playchess.com"]
[Source "ChessBase"]
[SourceQuality "1"]
[TimeControl "5400+30"]

1. e3 {[%emt 0:06:24]} g6 {[%emt 0:01:09]} 2. h4 {[%emt 0:02:22]} Nf6 {[%emt 0:01:52]} 3. g4 {[%emt 0:07:25]} h6 {[%emt 0:00:48]} 4. Qf3 {[%emt 0:06:36]} Nc6 {[%emt 0:03:50]} 5. g5 {[%emt 0:03:53]} Nh5 {[%emt 0:00:17]} 6. d4 {[%emt 0:03:31]} e6 {[%emt 0:06:55]} 7. Nc3 {[%emt 0:08:30]} d5 {[%emt 0:10:10]} 8. Bd2 {[%emt 0:09:03]} a6 {[%emt 0:00:34]} 9. Nge2 {[%emt 0:04:59]} Bg7 {[%emt 0:24:03]} 10. O-O-O {[%emt 0:01:56]} hxg5 {[%emt 0:02:16]} 11. hxg5 {[%emt 0:02:30]} Qxg5 {[%emt 0:00:16]} 12. e4 {[%emt 0:00:12]} Qf6 {[%emt 0:00:10]} 13. Qg2 {[%emt 0:01:18]} Nxd4 {[%emt 0:04:18]} 14. Bg5 {[%emt 0:02:54]} Nxe2+ {[%emt 0:00:15]} 15. Bxe2 {[%emt 0:00:08]} Bh6 {[%emt 0:00:06]} 16. Bxh6 {[%emt 0:01:11]} Rxh6 {[%emt 0:00:11]} 17. Bxh5 {[%emt 0:00:29]} Rxh5 {[%emt 0:02:31]} 18. Rxh5 {[%emt 0:00:34]} gxh5 {[%emt 0:00:15]} 19. Qg8+ {[%emt 0:01:10]} Kd7 {[%emt 0:03:38]} 20. exd5 {[%emt 0:01:26]} e5 {[%emt 0:00:36]} 21. d6 {[%emt 0:00:12]} cxd6 {[%emt 0:03:29]} 22. Nd5 {[%emt 0:01:35]} Qxf2 {[%emt 0:04:30]} 23. Qf8 {[%emt 0:00:55]} Kc6 {[%emt 0:02:39]} 24. Qe8+ {[%emt 0:32:47] Kxd5} 1-0

[Event "VIII Lorca Open-A 2019"]
[Site "Lorca"]
[Date "2019.12.30"]
[Round "8.13"]
[White "Peng, Li Min"]
[Black "Romero Pallares, Daniel"]
[Result "1-0"]
[ECO "E71"]
[WhiteElo "2451"]
[BlackElo "2177"]
[Annotator "ChessBase"]
[PlyCount "55"]
[EventDate "2019.12.26"]
[EventType "swiss"]
[EventCountry "ESP"]
[SourceTitle "playchess.com"]
[Source "ChessBase"]
[SourceQuality "1"]
[TimeControl "5400+30"]

1. d4 {[%emt 0:04:17]} Nf6 {[%emt 0:00:29]} 2. c4 {[%emt 0:00:16]} g6 {[%emt 0:00:56]} 3. Nc3 {[%emt 1:26:57]} Bg7 {[%emt 0:00:07]} 4. e4 {[%emt 0:00:00]} d6 {[%emt 0:00:03]} 5. h3 {[%emt 0:00:00]} O-O {[%emt 0:00:04]} 6. Be3 {[%emt 0:00:00]} Na6 {[%emt 0:00:06]} 7. g4 {[%emt 0:00:00]} c5 {[%emt 0:02:50]} 8. Nge2 {[%emt 0:00:00]} cxd4 {[%emt 0:03:31]} 9. Nxd4 {[%emt 0:00:00]} b6 {[%emt 0:06:26]} 10. g5 {[%emt 0:00:00]} Ne8 {[%emt 0:05:17]} 11. h4 {[%emt 0:00:00]} Bd7 {[%emt 0:14:13]} 12. Qd2 {[%emt 0:00:00]} Nec7 {[%emt 0:02:37]} 13. O-O-O {[%emt 0:00:00]} Nc5 {[%emt 0:01:28]} 14. f3 {[%emt 0:00:00]} a6 {[%emt 0:10:41]} 15. h5 {[%emt 0:00:00]} b5 {[%emt 0:01:00]} 16. Qh2 {[%emt 0:00:00]} Re8 {[%emt 0:00:53]} 17. hxg6 {[%emt 0:00:00]} hxg6 {[%emt 0:00:10]} 18. Rd2 {[%emt 0:00:00]} b4 {[%emt 0:14:01]} 19. Nd1 {[%emt 0:00:00]} a5 {[%emt 0:12:20]} 20. Qh7+ {[%emt 0:00:00]} Kf8 {[%emt 0:00:06]} 21. Nf5 {[%emt 0:00:00]} gxf5 {[%emt 0:03:03]} 22. exf5 {[%emt 0:00:00]} Bxf5 {[%emt 0:03:16]} 23. Qxf5 {[%emt 0:00:00]} Qc8 {[%emt 0:00:37]} 24. Qh7 {[%emt 0:00:00]} Qe6 {[%emt 0:01:48]} 25. Rh6 {[%emt 0:00:00]} f6 {[%emt 0:07:48]} 26. Rg6 {[%emt 0:00:00]} Qf7 {[%emt 0:04:49]} 27. gxf6 {[%emt 0:00:00]} exf6 {[%emt 0:00:46]} 28. Rxg7 {[%emt 0:00:00]} 1-0

[Event "VIII Lorca Open-A 2019"]
[Site "Lorca"]
[Date "2019.12.30"]
[Round "8.14"]
[White "Real De Azua, Ernesto"]
[Black "Balaji Sekar"]
[Result "1-0"]
[ECO "B53"]
[WhiteElo "2450"]
[BlackElo "1189"]
[Annotator "ChessBase"]
[PlyCount "44"]
[EventDate "2019.12.26"]
[EventType "swiss"]
[EventCountry "ESP"]
[SourceTitle "playchess.com"]
[Source "ChessBase"]
[SourceQuality "1"]
[TimeControl "5400+30"]

1. e4 {[%emt 0:02:09]} c5 {[%emt 0:00:00]} 2. Nf3 {[%emt 0:00:07]} d6 {[%emt 0:00:00]} 3. d4 {[%emt 0:00:07]} cxd4 {[%emt 0:00:00]} 4. Qxd4 {[%emt 0:00:06]} Nf6 {[%emt 0:05:56]} 5. Be2 {[%emt 0:01:01]} Nc6 {[%emt 0:00:41]} 6. Qe3 {[%emt 0:00:06]} g6 {[%emt 0:01:53]} 7. O-O {[%emt 0:00:25]} Bg7 {[%emt 0:00:19]} 8. c4 {[%emt 0:06:20]} O-O {[%emt 0:01:49]} 9. Nc3 {[%emt 0:00:06]} Be6 {[%emt 0:06:55]} 10. Rb1 {[%emt 0:22:23]} Ng4 {[%emt 0:09:10]} 11. Qd2 {[%emt 0:03:20]} Nge5 {[%emt 0:10:20]} 12. b3 {[%emt 0:00:33]} Nxf3+ {[%emt 0:04:40]} 13. Bxf3 {[%emt 0:00:08]} Qa5 {[%emt 0:02:12]} 14. Nd5 {[%emt 0:11:50]} Qxd2 {[%emt 0:01:54]} 15. Bxd2 {[%emt 0:00:04]} Bxd5 {[%emt 0:04:52]} 16. exd5 {[%emt 0:00:44]} Nd4 {[%emt 0:00:02]} 17. Be4 {[%emt 0:09:02]} Ne2+ {[%emt 0:10:52]} 18. Kh1 {[%emt 0:00:05]} Nc3 {[%emt 0:00:03]} 19. Rbe1 {[%emt 0:00:25]} Bf6 {[%emt 0:17:30]} 20. Bd3 {[%emt 0:07:10]} Nxa2 {[%emt 0:01:58]} 21. Ra1 {[%emt 0:02:48]} Nc3 {[%emt 0:02:03]} 22. Rac1 {[%emt 0:01:16]} Rfe8 {[%emt 0:17:51]} 1-0

[Event "VIII Lorca Open-A 2019"]
[Site "Lorca"]
[Date "2019.12.30"]
[Round "8.15"]
[White "Merario Alarcon, Andres"]
[Black "Arias Igual, Alejandro"]
[Result "1-0"]
[ECO "A57"]
[WhiteElo "2417"]
[BlackElo "2208"]
[Annotator "NA RC"]
[PlyCount "93"]
[EventDate "2019.12.26"]
[EventType "swiss"]
[EventCountry "ESP"]
[SourceTitle "playchess.com"]
[Source "ChessBase"]
[SourceQuality "1"]
[TimeControl "5400+30"]

1. d4 {[%emt 1:30:30]} Nf6 {[%emt 1:30:30]} 2. c4 {[%emt 0:00:30]} c5 {[%emt 0:00:30]} 3. d5 {[%emt 0:00:30]} b5 {[%emt 0:00:30]} 4. cxb5 {[%emt 0:00:30]} a6 {[%emt 0:00:30]} 5. e3 {[%emt 0:00:30]} g6 {[%emt 0:00:30]} 6. Nc3 {[%emt 0:00:30]} Bg7 {[%emt 0:00:30]} 7. e4 {[%emt 0:00:30]} d6 {[%emt 0:00:30]} 8. Nf3 {[%emt 0:00:30]} O-O {[%emt 0:00:30]} 9. a4 {[%emt 0:00:30]} e6 {[%emt 0:00:30]} 10. dxe6 {[%emt 0:00:30] A57: Benko/Volga Gambit} Bxe6 {[%emt 0:00:30]} 11. Be3 {[%emt 0:00:30]} Qa5 {[%emt 0:00:30]} 12. Bd2 {[%emt 0:00:30]} Qc7 {[%emt 0:00:30]} 13. Be2 {[%emt 0:00:30]} axb5 {[%emt 0:00:30] [#]} 14. axb5 $146 {[%emt 0:00:30]} ({Predecessor:} 14. Bxb5 Qb7 15. O-O Nxe4 16. Nxe4 Qxe4 17. Ng5 Qf5 18. Nxe6 fxe6 {1-0 (25) So,W (2719)-Altschuler,J (2051) Lubbock 2013}) 14... Bb3 $1 {[%emt 0:00:30]} 15. Qc1 {[%emt 0:00:30]} ({Of course not} 15. Rxa8 Bxd1 16. Bxd1 Qb7 $17) 15... Rxa1 {[%emt 0:00:30]} 16. Qxa1 {[%emt 0:00:30]} Bc2 {[%emt 0:00:30]} 17. e5 {[%emt 0:00:30]} dxe5 {[%emt 0:00:30]} 18. Qc1 {[%emt 0:00:30]} Bb3 {[%emt 0:00:30]} 19. O-O {[%emt 0:00:30]} Nbd7 {[%emt 0:00:30]} 20. Bg5 {[%emt 0:00:30]} Be6 {[%emt 0:00:30]} 21. Be3 {[%emt 0:00:30]} c4 {[%emt 0:00:30]} 22. Rd1 {[%emt 0:00:30]} Ng4 {[%emt 0:00:30] [#]} (22... Rb8 $16) 23. Ng5 $1 {[%emt 0:00:30]} e4 {[%emt 0:00:30]} 24. Bf4 {[%emt 0:00:30]} Qb6 {[%emt 0:00:30]} 25. Ncxe4 {[%emt 0:00:30]} Bf5 {[%emt 0:00:30]} 26. h3 {[%emt 0:00:30]} Nge5 {[%emt 0:00:30]} 27. Be3 {[%emt 0:00:30]} Qxb5 {[%emt 0:00:30]} 28. Nd6 {[%emt 0:00:30]} Qb3 {[%emt 0:00:30]} 29. Nxf5 {[%emt 0:00:30]} ({Much worse is} 29. Bxc4 $6 Nxc4 30. Nxf5 gxf5 $11) 29... gxf5 $16 {[%emt 0:00:30]} 30. Bd4 {[%emt 0:00:30]} h6 {[%emt 0:00:30]} 31. Nf3 {[%emt 0:00:30]} Re8 {[%emt 0:00:30]} 32. Nd2 {[%emt 0:00:30]} Qa4 {[%emt 0:00:30]} 33. Nf1 {[%emt 0:00:30]} Nd3 {[%emt 0:00:30]} 34. Bxd3 {[%emt 0:00:30]} Bxd4 {[%emt 0:00:30]} 35. Bc2 {[%emt 0:00:30]} Qa7 {[%emt 0:00:30]} 36. Qd2 {[%emt 0:00:30]} Bxb2 {[%emt 0:00:30]} 37. Qxd7 {[%emt 0:00:30]} Qxd7 {[%emt 0:00:30]} 38. Rxd7 {[%emt 0:00:30]} f4 {[%emt 0:00:30]} 39. Rc7 {[%emt 0:00:30]} c3 {[%emt 0:00:30]} 40. Bb3 {[%emt 0:00:30]} Rf8 {[%emt 0:00:30]} 41. Nh2 {[%emt 0:00:30]} Kg7 {[%emt 0:00:30]} 42. Nf3 {[%emt 0:00:30]} Kf6 {[%emt 0:00:30]} 43. Kf1 {[%emt 0:00:30]} Kf5 {[%emt 0:00:30]} 44. Ke2 {[%emt 0:00:30]} f6 {[%emt 0:00:30]} 45. Rc5+ {[%emt 0:00:30]} Kg6 {[%emt 0:00:30]} 46. Nh4+ {[%emt 0:00:30]} Kh7 {[%emt 0:00:30]} 47. Rc7+ {[%emt 0:00:30]} 1-0

[Event "VIII Lorca Open-A 2019"]
[Site "Lorca"]
[Date "2019.12.30"]
[Round "9.2"]
[White "Marin, Mihail"]
[Black "Grigoryan, Karen H."]
[Result "1/2-1/2"]
[ECO "E62"]
[WhiteElo "2496"]
[BlackElo "2621"]
[Annotator "ChessBase"]
[PlyCount "42"]
[EventDate "2019.12.26"]
[EventType "swiss"]
[EventCountry "ESP"]
[SourceTitle "playchess.com"]
[Source "ChessBase"]
[SourceQuality "1"]
[TimeControl "5400+30"]

1. c4 {[%emt 0:00:00]} g6 {[%emt 0:00:53]} 2. g3 {[%emt 0:00:00]} Bg7 {[%emt 0:00:04]} 3. Bg2 {[%emt 0:00:00]} Nf6 {[%emt 0:00:26]} 4. Nc3 {[%emt 0:00:00]} O-O {[%emt 0:00:10]} 5. d4 {[%emt 0:01:40]} d6 {[%emt 0:00:16]} 6. Nf3 {[%emt 0:00:06]} c6 {[%emt 0:00:21]} 7. O-O {[%emt 0:00:11]} Qb6 {[%emt 0:00:05]} 8. h3 {[%emt 0:10:54]} Qa6 {[%emt 0:00:25]} 9. b3 {[%emt 0:00:29]} b5 {[%emt 0:00:49]} 10. cxb5 {[%emt 0:05:20]} cxb5 {[%emt 0:00:20]} 11. Bb2 {[%emt 0:00:20]} Bb7 {[%emt 0:00:40]} 12. Ne1 {[%emt 0:05:07]} Bxg2 {[%emt 0:00:10]} 13. Nxg2 {[%emt 0:00:05]} b4 {[%emt 0:00:54]} 14. Na4 {[%emt 0:00:24]} Nbd7 {[%emt 0:00:31]} 15. Ne3 {[%emt 0:03:09]} d5 {[%emt 0:07:02]} 16. Nc2 {[%emt 0:15:58]} Rab8 {[%emt 0:06:53]} 17. Ne1 {[%emt 0:04:02]} h5 {[%emt 0:13:59]} 18. Qd3 {[%emt 0:01:35]} Qe6 {[%emt 0:01:15]} 19. Kg2 {[%emt 0:00:31]} Ne4 {[%emt 0:04:09]} 20. Nf3 {[%emt 0:02:51]} f5 {[%emt 0:03:43]} 21. Bc1 {[%emt 0:04:57]} Ndc5 {[%emt 0:13:43]} 1/2-1/2

[Event "VIII Lorca Open-A 2019"]
[Site "Lorca"]
[Date "2019.12.30"]
[Round "9.3"]
[White "Krysa, Leandro"]
[Black "Sadzikowski, Daniel"]
[Result "1/2-1/2"]
[ECO "A13"]
[WhiteElo "2527"]
[BlackElo "2504"]
[Annotator "ChessBase"]
[PlyCount "37"]
[EventDate "2019.12.26"]
[EventType "swiss"]
[EventCountry "ESP"]
[SourceTitle "playchess.com"]
[Source "ChessBase"]
[SourceQuality "1"]
[TimeControl "5400+30"]

1. c4 {[%emt 0:00:00]} e6 {[%emt 0:00:00]} 2. Nc3 {[%emt 0:00:29]} d5 {[%emt 0:00:00]} 3. e3 {[%emt 0:00:20]} Nf6 {[%emt 0:00:00]} 4. Nf3 {[%emt 0:00:05]} Be7 {[%emt 0:00:48]} 5. b3 {[%emt 0:00:11]} O-O {[%emt 0:00:05]} 6. Bb2 {[%emt 0:00:09]} dxc4 {[%emt 0:00:02]} 7. bxc4 {[%emt 0:07:34]} c5 {[%emt 0:00:31]} 8. d4 {[%emt 0:00:56]} cxd4 {[%emt 0:00:47]} 9. exd4 {[%emt 0:00:05]} b6 {[%emt 0:00:23]} 10. Bd3 {[%emt 0:03:51]} Bb7 {[%emt 0:14:18]} 11. O-O {[%emt 0:00:16]} Nbd7 {[%emt 0:00:24]} 12. Re1 {[%emt 0:18:00]} Re8 {[%emt 0:00:51]} 13. Qe2 {[%emt 0:04:55]} Nf8 {[%emt 0:01:47]} 14. Ne5 {[%emt 0:02:08]} Ng6 {[%emt 0:02:54]} 15. Qe3 {[%emt 0:03:36]} Qc7 {[%emt 0:04:00]} 16. Nb5 {[%emt 0:10:55]} Qc8 {[%emt 0:00:38]} 17. Nc3 {[%emt 0:02:58]} Qc7 {[%emt 0:00:41]} 18. Nb5 {[%emt 0:01:01]} Qc8 {[%emt 0:00:07]} 19. Nc3 {[%emt 0:00:26]} 1/2-1/2

[Event "VIII Lorca Open-A 2019"]
[Site "Lorca"]
[Date "2019.12.30"]
[Round "9.4"]
[White "Narciso Dublan, Marc"]
[Black "Sosa, Tomas"]
[Result "1/2-1/2"]
[ECO "B26"]
[WhiteElo "2516"]
[BlackElo "2520"]
[Annotator "ChessBase"]
[PlyCount "30"]
[EventDate "2019.12.26"]
[EventType "swiss"]
[EventCountry "ESP"]
[SourceTitle "playchess.com"]
[Source "ChessBase"]
[SourceQuality "1"]
[TimeControl "5400+30"]

1. e4 {[%emt 1:30:30]} c5 {[%emt 1:30:30]} 2. Nc3 {[%emt 0:00:30]} g6 {[%emt 0:00:30]} 3. g3 {[%emt 0:00:30]} Bg7 {[%emt 0:00:30]} 4. Bg2 {[%emt 0:00:30]} Nc6 {[%emt 0:00:30]} 5. d3 {[%emt 0:00:30]} d6 {[%emt 0:00:30]} 6. Be3 {[%emt 0:00:30]} Rb8 {[%emt 0:00:30]} 7. Qd2 {[%emt 0:00:30]} e6 {[%emt 0:00:30]} 8. Nf3 {[%emt 0:00:30]} e5 {[%emt 0:00:30]} 9. O-O {[%emt 0:00:30]} Nge7 {[%emt 0:00:30]} 10. Bh6 {[%emt 0:00:30]} O-O {[%emt 0:00:30]} 11. Bxg7 {[%emt 0:00:30]} Kxg7 {[%emt 0:00:30]} 12. Nh4 {[%emt 0:00:30]} Be6 {[%emt 0:00:30]} 13. f4 {[%emt 0:00:30]} exf4 {[%emt 0:00:30]} 14. gxf4 {[%emt 0:00:30]} f5 {[%emt 0:00:30]} 15. Rae1 {[%emt 0:00:30]} Nd4 {[%emt 0:00:30]} 1/2-1/2